[Event "5th EKA IIFL Investment 2019"]
[Site "Mumbai"]
[Date "2020.01.05"]
[Round "7.41"]
[White "Senthil Maran K"]
[Black "Kavinda, Akila"]
[Result "1/2-1/2"]
[ECO "D74"]
[WhiteElo "2328"]
[BlackElo "2022"]
[Annotator "RC"]
[PlyCount "113"]
[EventDate "2019.12.30"]
[EventType "swiss"]
[EventCountry "IND"]
[SourceTitle "playchess.com"]
[Source "ChessBase"]
[SourceQuality "1"]
[TimeControl "40/5400+30:1800+30"]

1. d4 {[%emt 0:00:00]} Nf6 {[%emt 0:00:00]} 2. c4 {[%emt 0:00:14]} g6 {[%emt 0:00:00]} 3. g3 {[%emt 0:00:04]} Bg7 {[%emt 0:00:00]} 4. Bg2 {[%emt 0:00:14]} d5 {[%emt 0:03:19]} 5. cxd5 {[%emt 0:00:13]} Nxd5 {[%emt 0:00:03]} 6. Nf3 {[%emt 0:00:11]} O-O {[%emt 0:02:57]} 7. O-O {[%emt 0:01:35]} Nc6 {[%emt 0:05:51]} 8. e4 {[%emt 0:03:12]} Nb6 {[%emt 0:00:04]} 9. d5 {[%emt 0:00:12]} Na5 {[%emt 0:00:05]} 10. Nc3 {[%emt 0:01:17]} c6 {[%emt 0:01:45]} 11. Bf4 {[%emt 0:00:51]} cxd5 {[%emt 0:01:06]} 12. Nxd5 {[%emt 0:00:26]} Nxd5 {[%emt 0:02:02]} 13. exd5 {[%emt 0:00:08]} Nc4 {[%emt 0:00:53]} 14. Qc2 {[%emt 0:11:59]} Nd6 {[%emt 0:18:45]} 15. Rad1 {[%emt 0:02:21]} Bf5 {[%emt 0:06:42]} 16. Qe2 {[%emt 0:01:18]} Re8 {[%emt 0:05:19]} 17. Rfe1 {[%emt 0:03:31]} Qb6 {[%emt 0:06:58]} 18. Be5 {[%emt 0:02:06]} Qb5 {[%emt 0:17:21]} 19. Bxg7 {[%emt 0:07:26]} Qxe2 {[%emt 0:00:16]} 20. Rxe2 {[%emt 0:00:08]} Kxg7 {[%emt 0:00:02]} 21. Rde1 {[%emt 0:00:16]} Kf8 {[%emt 0:01:10]} 22. Ne5 {[%emt 0:00:08]} f6 {[%emt 0:06:04]} 23. Nf3 {[%emt 0:01:28]} Bg4 {[%emt 0:00:05]} 24. h3 {[%emt 0:01:17]} Bxf3 {[%emt 0:00:05]} 25. Bxf3 {[%emt 0:00:07]} Rac8 {[%emt 0:00:43]} 26. Bg4 {[%emt 0:00:59]} Rc7 {[%emt 0:00:38]} 27. Be6 {[%emt 0:00:29]} Rd8 {[%emt 0:03:25]} 28. h4 {[%emt 0:00:21]} Nf5 {[%emt 0:08:35]} 29. Rd2 {[%emt 0:06:44]} Ng7 {[%emt 0:03:54]} 30. Bh3 {[%emt 0:01:08]} Rd6 {[%emt 0:00:30]} 31. Bg2 {[%emt 0:03:37]} Nf5 {[%emt 0:03:23]} 32. Ree2 {[%emt 0:00:22]} Ke8 {[%emt 0:02:44]} 33. Rc2 {[%emt 0:01:46]} Kd8 {[%emt 0:00:19]} 34. Rxc7 {[%emt 0:00:44]} Kxc7 {[%emt 0:00:01]} 35. g4 {[%emt 0:03:37]} Nxh4 {[%emt 0:00:25]} 36. Rxe7+ {[%emt 0:00:10]} Rd7 {[%emt 0:01:17]} 37. d6+ {[%emt 0:00:57]} Kxd6 {[%emt 0:00:04]} 38. Rxd7+ {[%emt 0:00:06]} Kxd7 {[%emt 0:00:03]} 39. Bxb7 {[%emt 0:00:12]} f5 {[%emt 0:01:57]} 40. g5 {[%emt 0:00:00]} Kc7 {[%emt 0:00:00]} 41. Ba8 {[%emt 0:05:54]} f4 {[%emt 0:08:17]} 42. Be4 {[%emt 0:02:07]} Kd6 {[%emt 0:03:30]} 43. f3 {[%emt 0:05:40]} Ke5 {[%emt 0:00:37]} 44. b4 {[%emt 0:12:57]} Nf5 {[%emt 0:00:14]} 45. Bxf5 {[%emt 0:02:35]} Kxf5 {[%emt 0:00:03]} 46. b5 {[%emt 0:00:06]} Ke5 {[%emt 0:00:32]} 47. Kg2 {[%emt 0:00:07]} Kd4 {[%emt 0:03:25]} 48. Kh3 {[%emt 0:00:07]} Kc5 {[%emt 0:02:29]} 49. Kg4 {[%emt 0:00:33]} Kxb5 {[%emt 0:00:05]} 50. Kxf4 {[%emt 0:00:05]} Kc4 {[%emt 0:11:20]} 51. Ke5 {[%emt 0:03:51]} Kd3 {[%emt 0:00:06]} 52. a4 {[%emt 0:03:43]} Ke3 {[%emt 0:00:45]} 53. f4 {[%emt 0:00:47]} a5 {[%emt 0:00:40]} 54. f5 {[%emt 0:00:23]} gxf5 {[%emt 0:00:03]} 55. Kxf5 {[%emt 0:00:07]} Kf3 {[%emt 0:00:15]} 56. g6 {[%emt 0:00:29]} hxg6+ {[%emt 0:00:20]} 57. Kxg6 {[%emt 0:00:01]} 1/2-1/2

[Event "5th EKA IIFL Investment 2019"]
[Site "Mumbai"]
[Date "2020.01.05"]
[Round "7.42"]
[White "Sri Sai Baswanth P"]
[Black "Thakur, Akash"]
[Result "1/2-1/2"]
[ECO "A15"]
[WhiteElo "2008"]
[BlackElo "2300"]
[Annotator "NA"]
[PlyCount "55"]
[EventDate "2019.12.30"]
[EventType "swiss"]
[EventCountry "IND"]
[SourceTitle "playchess.com"]
[Source "ChessBase"]
[SourceQuality "1"]
[TimeControl "40/5400+30:1800+30"]

1. c4 {[%emt 0:00:15]} Nf6 {[%emt 0:00:00]} 2. g3 {[%emt 0:00:09]} c6 {[%emt 0:00:09]} 3. Bg2 {[%emt 0:00:08]} d5 {[%emt 0:00:05]} 4. Nf3 {[%emt 0:00:06]} dxc4 {[%emt 0:08:23]} 5. O-O {[%emt 0:04:41]} Nbd7 {[%emt 0:06:11]} 6. Na3 {[%emt 0:02:06]} Nb6 {[%emt 0:00:32]} 7. Qc2 {[%emt 0:02:06]} Qd5 {[%emt 0:03:46]} 8. b3 {[%emt 0:03:06]} Bf5 {[%emt 0:01:59]} 9. Qb2 {[%emt 0:06:52]} cxb3 {[%emt 0:05:18]} 10. d3 {[%emt 0:23:29]} Na4 {[%emt 0:22:10]} 11. Qd2 {[%emt 0:03:41]} Qd8 {[%emt 0:20:50]} 12. axb3 {[%emt 0:01:50]} Nc5 {[%emt 0:01:05]} 13. Qc3 {[%emt 0:05:24]} e6 {[%emt 0:00:20]} 14. Nc4 {[%emt 0:08:59]} Be7 {[%emt 0:03:42]} 15. Na5 {[%emt 0:09:05]} O-O {[%emt 0:07:09]} 16. e4 {[%emt 0:07:11]} Bg6 {[%emt 0:03:33]} 17. Ba3 {[%emt 0:01:09]} Qb6 {[%emt 0:04:29]} 18. Nxb7 {[%emt 0:01:51]} Ncxe4 {[%emt 0:02:15]} 19. dxe4 {[%emt 0:00:54]} Nxe4 {[%emt 0:01:22]} 20. Qa5 {[%emt 0:00:44]} Qxb7 {[%emt 0:01:46]} 21. Ne5 {[%emt 0:00:06]} c5 {[%emt 0:02:47]} 22. Qe1 {[%emt 0:06:15]} f5 {[%emt 0:00:46]} 23. f3 {[%emt 0:00:10]} Nf6 {[%emt 0:01:37]} 24. Nxg6 {[%emt 0:00:09]} hxg6 {[%emt 0:00:01]} 25. Qxe6+ {[%emt 0:00:08]} Kh7 {[%emt 0:00:24]} 26. f4 {[%emt 0:03:50]} Ne4 {[%emt 0:00:02]} 27. Bxe4 {[%emt 0:00:54]} Qxe4 {[%emt 0:01:43]} 28. Qxe4 {[%emt 0:01:05]} 1/2-1/2

[Event "5th EKA IIFL Investment 2019"]
[Site "Mumbai"]
[Date "2020.01.05"]
[Round "7.43"]
[White "Nikhil Magizhnan"]
[Black "Saurabh Anand"]
[Result "1-0"]
[ECO "C02"]
[WhiteElo "2077"]
[BlackElo "2269"]
[Annotator "NA"]
[PlyCount "125"]
[EventDate "2019.12.30"]
[EventType "swiss"]
[EventCountry "IND"]
[SourceTitle "playchess.com"]
[Source "ChessBase"]
[SourceQuality "1"]
[TimeControl "40/5400+30:1800+30"]

1. e4 {[%emt 0:00:21]} e6 {[%emt 0:00:14]} 2. d4 {[%emt 0:01:41]} d5 {[%emt 0:00:32]} 3. e5 {[%emt 0:00:17]} c5 {[%emt 0:00:27]} 4. c3 {[%emt 0:00:05]} Nc6 {[%emt 0:00:12]} 5. Nf3 {[%emt 0:00:13]} Qb6 {[%emt 0:00:48]} 6. Bd3 {[%emt 0:01:16]} cxd4 {[%emt 0:01:01]} 7. cxd4 {[%emt 0:00:22]} Bd7 {[%emt 0:00:09]} 8. O-O {[%emt 0:00:40]} Nxd4 {[%emt 0:00:40]} 9. Nxd4 {[%emt 0:00:05]} Qxd4 {[%emt 0:00:14]} 10. Nc3 {[%emt 0:00:07]} a6 {[%emt 0:00:22]} 11. Qf3 {[%emt 0:05:35]} Ne7 {[%emt 0:05:13]} 12. Rd1 {[%emt 0:07:02]} Qb6 {[%emt 0:20:14]} 13. Be3 {[%emt 0:11:40]} Qd8 {[%emt 0:03:46]} 14. Qg3 {[%emt 0:15:13]} Ng6 {[%emt 0:02:52]} 15. f4 {[%emt 0:01:32]} Be7 {[%emt 0:00:53]} 16. f5 {[%emt 0:08:23]} Bh4 {[%emt 0:02:30]} 17. Qh3 {[%emt 0:03:19]} Nxe5 {[%emt 0:01:12]} 18. fxe6 {[%emt 0:00:38]} fxe6 {[%emt 0:09:05]} 19. Bc2 {[%emt 0:04:53]} O-O {[%emt 0:02:22]} 20. Bc5 {[%emt 0:19:59]} Rf7 {[%emt 0:05:10]} 21. Rf1 {[%emt 0:01:05]} Rc8 {[%emt 0:04:20]} 22. Bd4 {[%emt 0:01:17]} Rxf1+ {[%emt 0:00:56]} 23. Rxf1 {[%emt 0:00:12]} Ng6 {[%emt 0:00:12]} 24. Bxg6 {[%emt 0:02:00]} hxg6 {[%emt 0:00:10]} 25. Qd3 {[%emt 0:01:12]} Be8 {[%emt 0:02:49]} 26. Qe3 {[%emt 0:06:31]} Rc6 {[%emt 0:01:19]} 27. Ne2 {[%emt 0:01:09]} Bf6 {[%emt 0:02:54]} 28. Bxf6 {[%emt 0:00:46]} gxf6 {[%emt 0:00:11]} 29. Nd4 {[%emt 0:00:21]} Rd6 {[%emt 0:12:22]} 30. Nxe6 {[%emt 0:00:30]} Qb6 {[%emt 0:00:30]} 31. Nd4 {[%emt 0:02:03]} Bf7 {[%emt 0:00:10]} 32. Qf2 {[%emt 0:00:38]} Qc5 {[%emt 0:01:52]} 33. Kh1 {[%emt 0:00:59]} Qc4 {[%emt 0:00:39]} 34. b3 {[%emt 0:00:22]} Qd3 {[%emt 0:00:50]} 35. Re1 {[%emt 0:00:02]} Qc3 {[%emt 0:04:22]} 36. h3 {[%emt 0:01:06]} Rb6 {[%emt 0:01:13]} 37. Rd1 {[%emt 0:02:04]} Qc5 {[%emt 0:00:37]} 38. Qf4 {[%emt 0:01:23]} a5 {[%emt 0:01:01]} 39. Rc1 {[%emt 0:00:44]} Qd6 {[%emt 0:01:49]} 40. Rc8+ {[%emt 0:00:00]} Kg7 {[%emt 0:00:00]} 41. Qh4 {[%emt 0:04:16]} Bg8 {[%emt 0:00:12]} 42. Qg4 {[%emt 0:03:22]} Qe5 {[%emt 0:03:11]} 43. Qd7+ {[%emt 0:02:13]} Bf7 {[%emt 0:00:11]} 44. Qd8 {[%emt 0:01:04]} Qe1+ {[%emt 0:01:35]} 45. Kh2 {[%emt 0:00:04]} Qe5+ {[%emt 0:00:03]} 46. g3 {[%emt 0:00:13]} Qe8 {[%emt 0:01:17]} 47. Qxe8 {[%emt 0:00:33]} Bxe8 {[%emt 0:00:11]} 48. Rxe8 {[%emt 0:00:03]} Rb4 {[%emt 0:00:03]} 49. Nc2 {[%emt 0:00:25]} Rb5 {[%emt 0:00:02]} 50. Rc8 {[%emt 0:00:50]} a4 {[%emt 0:00:08]} 51. Rc3 {[%emt 0:00:25]} axb3 {[%emt 0:00:06]} 52. axb3 {[%emt 0:00:06]} f5 {[%emt 0:00:04]} 53. Kg2 {[%emt 0:00:44]} Kf6 {[%emt 0:00:02]} 54. Kf3 {[%emt 0:01:03]} Ke5 {[%emt 0:00:05]} 55. Re3+ {[%emt 0:00:10]} Kf6 {[%emt 0:00:01]} 56. Ke2 {[%emt 0:02:02]} Rb6 {[%emt 0:00:04]} 57. Nd4 {[%emt 0:00:09]} Rb4 {[%emt 0:00:04]} 58. Kd3 {[%emt 0:00:14]} Rb6 {[%emt 0:00:07]} 59. Re8 {[%emt 0:00:16]} Ra6 {[%emt 0:00:05]} 60. Rb8 {[%emt 0:00:33]} Rb6 {[%emt 0:00:04]} 61. Kc3 {[%emt 0:00:20]} Ke5 {[%emt 0:00:08]} 62. h4 {[%emt 0:01:42]} Kf6 {[%emt 0:00:13]} 63. b4 {[%emt 0:00:47]} 1-0

[Event "5th EKA IIFL Investment 2019"]
[Site "Mumbai"]
[Date "2020.01.05"]
[Round "7.44"]
[White "Laddha, Shubh Jayesh"]
[Black "Luong, Phuong Hanh"]
[Result "0-1"]
[ECO "B40"]
[WhiteElo "1975"]
[BlackElo "2256"]
[Annotator "NA"]
[PlyCount "108"]
[EventDate "2019.12.30"]
[EventType "swiss"]
[EventCountry "IND"]
[SourceTitle "playchess.com"]
[Source "ChessBase"]
[SourceQuality "1"]
[TimeControl "40/5400+30:1800+30"]

1. e4 c5 2. Nf3 e6 3. g3 d5 4. exd5 exd5 5. d4 Nf6 6. Bg2 Be7 7. O-O O-O 8. dxc5 Na6 9. a3 Nxc5 10. b4 Nce4 11. Bb2 a5 12. c3 Bg4 13. Nbd2 Qb6 14. Nb3 Rfc8 15. Rc1 a4 16. Nbd4 Nd7 17. Qd3 Bf6 18. Rc2 Qc7 19. Nb5 Qc6 20. Nfd4 Qb6 21. f3 Ne5 22. Qe2 Bd7 23. fxe4 Nc4 24. e5 Bxe5 25. Bxd5 Bxb5 26. Bxf7+ Kh8 27. Bxc4 Bxc4 28. Qxe5 Bxf1 29. Kxf1 Re8 30. Qb5 Rf8+ 31. Kg2 Qf6 32. Bc1 Rae8 33. Bf4 Qg6 34. Re2 Rxe2+ 35. Qxe2 Rxf4 36. Nf3 Re4 37. Qd3 Qe8 38. Kf2 h6 39. Nd2 Re7 40. Nf3 Rf7 41. Kg2 Qc6 42. b5 Qf6 43. Qe4 b6 44. Qe2 Qe7 45. Ne5 Kg8 46. Qe4 Qe6 47. Qd4 Rf5 48. Nd3 Qd5+ 49. Kg1 Qxd4+ 50. cxd4 Rxb5 51. Ne5 Rb3 52. Nc4 b5 53. Nd6 b4 54. axb4 a3 0-1

[Event "5th EKA IIFL Investment 2019"]
[Site "Mumbai"]
[Date "2020.01.05"]
[Round "7.46"]
[White "Masango, Spencer"]
[Black "Samant Aditya S"]
[Result "1/2-1/2"]
[ECO "E19"]
[WhiteElo "2173"]
[BlackElo "2296"]
[Annotator "ChessBase"]
[PlyCount "120"]
[EventDate "2019.12.30"]
[EventType "swiss"]
[EventCountry "IND"]
[SourceTitle "playchess.com"]
[Source "ChessBase"]
[SourceQuality "1"]
[TimeControl "40/5400+30:1800+30"]

1. Nf3 {[%emt 0:01:12]} Nf6 {[%emt 0:00:00]} 2. c4 {[%emt 0:00:06]} e6 {[%emt 0:00:00]} 3. g3 {[%emt 0:00:04]} a6 {[%emt 0:03:36]} 4. Bg2 {[%emt 0:00:08]} b5 {[%emt 0:00:07]} 5. d3 {[%emt 0:00:48]} Bb7 {[%emt 0:01:34]} 6. O-O {[%emt 0:00:09]} c5 {[%emt 0:01:22]} 7. b3 {[%emt 0:00:40]} Be7 {[%emt 0:01:34]} 8. Bb2 {[%emt 0:00:06]} O-O {[%emt 0:01:13]} 9. Nc3 {[%emt 0:00:08]} Qb6 {[%emt 0:00:50]} 10. Qc2 {[%emt 0:01:42]} Nc6 {[%emt 0:02:25]} 11. Rac1 {[%emt 0:00:09]} d6 {[%emt 0:00:50]} 12. e4 {[%emt 0:00:22]} Nd7 {[%emt 0:03:22]} 13. Ne2 {[%emt 0:01:11]} Rac8 {[%emt 0:11:15]} 14. Qd2 {[%emt 0:02:12]} Bf6 {[%emt 0:06:54]} 15. Bxf6 {[%emt 0:14:15]} Nxf6 {[%emt 0:00:38]} 16. Ne1 {[%emt 0:00:26]} d5 {[%emt 0:08:19]} 17. cxd5 {[%emt 0:08:58]} exd5 {[%emt 0:00:51]} 18. exd5 {[%emt 0:03:09]} Ne7 {[%emt 0:04:51]} 19. d4 {[%emt 0:03:51]} c4 {[%emt 0:08:10]} 20. bxc4 {[%emt 0:00:06]} bxc4 {[%emt 0:05:22]} 21. Nc3 {[%emt 0:08:25]} Bxd5 {[%emt 0:04:21]} 22. Nxd5 {[%emt 0:07:23]} Nexd5 {[%emt 0:01:05]} 23. Nc2 {[%emt 0:02:13]} c3 {[%emt 0:12:15]} 24. Qd3 {[%emt 0:00:49]} Rfd8 {[%emt 0:01:19]} 25. Rb1 {[%emt 0:00:39]} Qa5 {[%emt 0:01:36]} 26. Rb7 {[%emt 0:01:41]} Rb8 {[%emt 0:07:37]} 27. Rfb1 {[%emt 0:13:00]} Rxb7 {[%emt 0:01:01]} 28. Rxb7 {[%emt 0:00:07]} Qxa2 {[%emt 0:01:14]} 29. Qf5 {[%emt 0:10:28]} h6 {[%emt 0:04:25]} 30. Be4 {[%emt 0:01:59]} a5 {[%emt 0:03:11]} 31. Bd3 {[%emt 0:01:33]} Re8 {[%emt 0:02:27]} 32. Rb5 {[%emt 0:01:25]} a4 {[%emt 0:01:11]} 33. Kg2 {[%emt 0:00:39]} a3 {[%emt 0:00:54]} 34. Ra5 {[%emt 0:00:45]} Qb3 {[%emt 0:00:37]} 35. Rxa3 {[%emt 0:00:19]} Qb7 {[%emt 0:00:21]} 36. Qf3 {[%emt 0:00:58]} g5 {[%emt 0:00:40]} 37. h3 {[%emt 0:00:10]} Qc7 {[%emt 0:00:31]} 38. Ra6 {[%emt 0:01:31]} Re6 {[%emt 0:00:20]} 39. Rxe6 {[%emt 0:07:19]} fxe6 {[%emt 0:00:06]} 40. Kg1 {[%emt 0:00:00]} Kg7 {[%emt 0:00:00]} 41. Qe2 {[%emt 0:02:34]} Kf7 {[%emt 0:04:23]} 42. Qe1 {[%emt 0:01:19]} Qb8 {[%emt 0:04:06]} 43. Qa1 {[%emt 0:00:43]} h5 {[%emt 0:09:43]} 44. Qc1 {[%emt 0:00:33]} Qg8 {[%emt 0:01:01]} 45. Qa3 {[%emt 0:00:15]} Qb8 {[%emt 0:01:09]} 46. Qc1 {[%emt 0:00:22]} Qg8 {[%emt 0:00:11]} 47. Qa3 {[%emt 0:00:08]} h4 {[%emt 0:02:26]} 48. Qa7+ {[%emt 0:01:19]} Kf8 {[%emt 0:01:00]} 49. Qb8+ {[%emt 0:04:46]} Kg7 {[%emt 0:00:55]} 50. Qxg8+ {[%emt 0:00:35]} Nxg8 {[%emt 0:00:52]} 51. Kg2 {[%emt 0:00:22]} Nge7 {[%emt 0:01:28]} 52. Bc4 {[%emt 0:00:47]} Kf6 {[%emt 0:01:34]} 53. Kf3 {[%emt 0:00:39]} Nf5 {[%emt 0:04:44]} 54. Bd3 {[%emt 0:02:01]} Nfe7 {[%emt 0:01:58]} 55. Be4 {[%emt 0:05:04]} hxg3 {[%emt 0:01:26]} 56. fxg3 {[%emt 0:00:09]} Nc7 {[%emt 0:01:05]} 57. Ke3 {[%emt 0:01:10]} Nf5+ {[%emt 0:00:46]} 58. Bxf5 {[%emt 0:02:43]} exf5 {[%emt 0:00:05]} 59. Kd3 {[%emt 0:00:26]} Nd5 {[%emt 0:00:23]} 60. Ne1 {[%emt 0:02:14]} g4 {[%emt 0:01:19]} 1/2-1/2

[Event "5th EKA IIFL Investment 2019"]
[Site "Mumbai"]
[Date "2020.01.05"]
[Round "7.47"]
[White "Gandhi, Anish"]
[Black "Mohite, Ranveer"]
[Result "1/2-1/2"]
[ECO "A40"]
[WhiteElo "2168"]
[BlackElo "2281"]
[Annotator "ChessBase"]
[PlyCount "184"]
[EventDate "2019.12.30"]
[EventType "swiss"]
[EventCountry "IND"]
[SourceTitle "playchess.com"]
[Source "ChessBase"]
[SourceQuality "1"]
[TimeControl "40/5400+30:1800+30"]

1. d4 Nf6 2. c4 e6 3. g3 d5 4. Nf3 Bb4+ 5. Bd2 Be7 6. Bg2 O-O 7. O-O c6 8. Qc2 Nbd7 9. Bf4 Ne4 10. Nc3 g5 11. Bc1 f5 12. Nxe4 fxe4 13. Ne1 Bf6 14. Be3 Bg7 15. f3 c5 16. Qd2 cxd4 17. Bxd4 e5 18. Bf2 dxc4 19. Qd5+ Kh8 20. Qxc4 Nf6 21. fxe4 b6 22. h3 Bb7 23. Nd3 Qe7 24. Rac1 g4 25. h4 Bh6 26. Rc3 Rad8 27. Qc7 Qxc7 28. Rxc7 Rd7 29. Rxd7 Nxd7 30. Nb4 Rc8 31. Be1 Rc1 32. Nd5 Kg7 33. Bc3 Rxf1+ 34. Kxf1 Kf7 35. e3 Ke6 36. b4 Kd6 37. Kf2 b5 38. Bf1 a6 39. Be2 Bxd5 40. exd5 Nf6 41. Bd3 Kxd5 42. Ke2 Bg7 43. Bf5 h5 44. Bc2 Ne4 45. Bb3+ Kc6 46. Be1 Nd6 47. Be6 Bf6 48. Bg8 e4 49. Be6 Be5 50. Kd1 Kc7 51. Ke2 Kd8 52. Bd5 Ke7 53. Ba8 Ke6 54. Bc6 Bb2 55. Ba8 Kf5 56. Bc6 Ke5 57. Ba8 Ne8 58. Bc6 Nd6 59. Ba8 Ba1 60. Bc6 Ke6 61. Ba8 Be5 62. Bc6 Ke7 63. Ba8 Kd8 64. Bc6 Kc7 65. Bd5 Nf5 66. Bxe4 Nxg3+ 67. Bxg3 Bxg3 68. Bg6 Bxh4 69. Bxh5 g3 70. Kf1 Be7 71. Kg2 Bd6 72. Bf3 Be5 73. Bd5 Kb6 74. e4 Bd6 75. Kf3 Ka7 76. Kg2 Kb8 77. Kf3 Be5 78. Kg2 Kc7 79. Kf3 Bd6 80. Kg2 Kb6 81. Kf3 Bxb4 82. Kxg3 Bd6+ 83. Kf3 Kc5 84. Ke2 Kb4 85. Kd2 a5 86. Kc2 Kc5 87. Bf7 b4 88. Be6 Kd4 89. Bd5 a4 90. Bf7 b3+ 91. Bxb3 axb3+ 92. Kxb3 Kxe4 1/2-1/2

[Event "5th EKA IIFL Investment 2019"]
[Site "Mumbai"]
[Date "2020.01.05"]
[Round "7.48"]
[White "Mithil, Ajgaonkar"]
[Black "Thanki, Hemal Karsanji"]
[Result "1-0"]
[ECO "E62"]
[WhiteElo "2278"]
[BlackElo "2164"]
[Annotator "NA"]
[PlyCount "99"]
[EventDate "2019.12.30"]
[EventType "swiss"]
[EventCountry "IND"]
[SourceTitle "playchess.com"]
[Source "ChessBase"]
[SourceQuality "1"]
[TimeControl "40/5400+30:1800+30"]

1. d4 Nf6 2. Nf3 g6 3. g3 Bg7 4. c4 O-O 5. Bg2 d6 6. O-O c6 7. Nc3 Bf5 8. b3 Ne4 9. Bb2 Nxc3 10. Bxc3 Be4 11. Qd2 d5 12. Rfe1 Nd7 13. Nh4 Bxg2 14. Nxg2 Nf6 15. Qc2 Qb6 16. Rad1 Rfd8 17. Ba1 a5 18. a4 e6 19. Nf4 Qa7 20. Kg2 Rac8 21. Nd3 h5 22. Qb1 Nd7 23. Nf4 Qa6 24. Rc1 Qb6 25. Red1 Nf6 26. Nd3 Nd7 27. e3 Qa7 28. Rc2 Qa8 29. f3 Bh6 30. e4 Nf6 31. Re2 Bg7 32. Nf2 Qa6 33. Qc2 b6 34. Nh3 Qb7 35. e5 Nd7 36. Qb1 b5 37. axb5 cxb5 38. cxd5 Qxd5 39. Nf4 Qc6 40. d5 exd5 41. e6 Nc5 42. exf7+ Kxf7 43. Nxg6 Bxa1 44. Qf5+ Bf6 45. Ne5+ Kf8 46. Nxc6 Rxc6 47. Rxd5 Rdc8 48. Rxc5 Rxc5 49. Qxf6+ Kg8 50. Re7 1-0

[Event "5th EKA IIFL Investment 2019"]
[Site "Mumbai"]
[Date "2020.01.05"]
[Round "7.49"]
[White "Deshpande, Aniruddha"]
[Black "Priyanka, Kumari"]
[Result "0-1"]
[ECO "E62"]
[WhiteElo "2275"]
[BlackElo "1874"]
[Annotator "ChessBase"]
[PlyCount "92"]
[EventDate "2019.12.30"]
[EventType "swiss"]
[EventCountry "IND"]
[SourceTitle "playchess.com"]
[Source "ChessBase"]
[SourceQuality "1"]
[TimeControl "40/5400+30:1800+30"]

1. c4 {[%emt 0:00:06]} Nf6 {[%emt 0:00:01]} 2. Nf3 {[%emt 0:00:37]} g6 {[%emt 0:00:08]} 3. g3 {[%emt 0:00:05]} Bg7 {[%emt 0:00:07]} 4. Bg2 {[%emt 0:00:05]} d6 {[%emt 0:00:15]} 5. d4 {[%emt 0:00:19]} O-O {[%emt 0:00:17]} 6. O-O {[%emt 0:00:07]} c6 {[%emt 0:00:26]} 7. Nc3 {[%emt 0:00:06]} Bf5 {[%emt 0:00:12]} 8. Qb3 {[%emt 0:01:49]} Qc7 {[%emt 0:01:33]} 9. Re1 {[%emt 0:00:49]} Ne4 {[%emt 0:02:44]} 10. Nh4 {[%emt 0:02:39]} Nxc3 {[%emt 0:00:50]} 11. bxc3 {[%emt 0:00:14]} Be6 {[%emt 0:08:22]} 12. Rb1 {[%emt 0:06:08]} b5 {[%emt 0:12:16]} 13. d5 {[%emt 0:04:42]} cxd5 {[%emt 0:08:56]} 14. Qxb5 {[%emt 0:08:37]} Nd7 {[%emt 0:07:29]} 15. cxd5 {[%emt 0:04:07]} Rab8 {[%emt 0:00:24]} 16. Qd3 {[%emt 0:00:11]} Nc5 {[%emt 0:05:08]} 17. Qc2 {[%emt 0:02:21]} Rxb1 {[%emt 0:00:48]} 18. Qxb1 {[%emt 0:08:02]} Bd7 {[%emt 0:01:35]} 19. Be3 {[%emt 0:13:26]} Rb8 {[%emt 0:04:20]} 20. Qc2 {[%emt 0:07:44]} Na4 {[%emt 0:04:58]} 21. Nf3 {[%emt 0:02:05]} Rb2 {[%emt 0:10:45]} 22. Qc1 {[%emt 0:07:28]} Rxa2 {[%emt 0:04:24]} 23. Nd4 {[%emt 0:08:23]} Nxc3 {[%emt 0:04:15]} 24. Kh1 {[%emt 0:04:23]} Ba4 {[%emt 0:06:04]} 25. Nc6 {[%emt 0:02:00]} Bxc6 {[%emt 0:04:17]} 26. dxc6 {[%emt 0:00:19]} d5 {[%emt 0:00:29]} 27. Bc5 {[%emt 0:04:11]} e6 {[%emt 0:01:54]} 28. Qf4 {[%emt 0:03:07]} Qxf4 {[%emt 0:07:02]} 29. gxf4 {[%emt 0:00:03]} Ra6 {[%emt 0:00:20]} 30. c7 {[%emt 0:02:13]} Rc6 {[%emt 0:00:11]} 31. Bxa7 {[%emt 0:00:14]} Rxc7 {[%emt 0:00:08]} 32. Bb6 {[%emt 0:00:13]} Rb7 {[%emt 0:00:25]} 33. Ba5 {[%emt 0:00:11]} Rb2 {[%emt 0:02:07]} 34. Bf3 {[%emt 0:01:17]} d4 {[%emt 0:00:49]} 35. Bxc3 {[%emt 0:06:04]} dxc3 {[%emt 0:00:04]} 36. Be4 {[%emt 0:00:08]} Bh6 {[%emt 0:00:58]} 37. Kg2 {[%emt 0:02:48]} Bxf4 {[%emt 0:00:24]} 38. e3 {[%emt 0:00:23]} Be5 {[%emt 0:01:56]} 39. Rb1 {[%emt 0:00:19]} Rd2 {[%emt 0:00:36]} 40. Rb5 {[%emt 0:00:00]} Bd6 {[%emt 0:00:00]} 41. Rb6 {[%emt 0:02:17]} Bc5 {[%emt 0:10:37]} 42. Rc6 {[%emt 0:03:35]} Bxe3 {[%emt 0:00:41]} 43. Rxc3 {[%emt 0:00:06]} Bxf2 {[%emt 0:00:34]} 44. Rc2 {[%emt 0:00:13]} Rxc2 {[%emt 0:01:20]} 45. Bxc2 {[%emt 0:00:02]} Bd4 {[%emt 0:00:41]} 46. Bb3 {[%emt 0:00:07]} Kg7 {[%emt 0:01:24]} 0-1

[Event "5th EKA IIFL Investment 2019"]
[Site "Mumbai"]
[Date "2020.01.05"]
[Round "7.50"]
[White "Manish Kumar"]
[Black "Aaryan Varshney"]
[Result "1/2-1/2"]
[ECO "B23"]
[WhiteElo "2168"]
[BlackElo "2287"]
[Annotator "NA"]
[PlyCount "28"]
[EventDate "2019.12.30"]
[EventType "swiss"]
[EventCountry "IND"]
[SourceTitle "playchess.com"]
[Source "ChessBase"]
[SourceQuality "1"]
[TimeControl "40/5400+30:1800+30"]

1. e4 {[%emt 0:02:56]} c5 {[%emt 0:00:00]} 2. Nc3 {[%emt 0:00:54]} Nc6 {[%emt 0:00:00]} 3. f4 {[%emt 0:00:05]} g6 {[%emt 0:00:13]} 4. Nf3 {[%emt 0:00:02]} Bg7 {[%emt 0:00:15]} 5. Bc4 {[%emt 0:00:06]} d6 {[%emt 0:00:35]} 6. O-O {[%emt 0:00:06]} Nf6 {[%emt 0:00:52]} 7. d3 {[%emt 0:00:08]} O-O {[%emt 0:00:21]} 8. d4 {[%emt 0:00:55]} Nxd4 {[%emt 0:00:19]} 9. Nxd4 {[%emt 0:00:02]} cxd4 {[%emt 0:00:02]} 10. Nd5 {[%emt 0:00:11]} Nxd5 {[%emt 0:00:36]} 11. Bxd5 {[%emt 0:00:03]} e6 {[%emt 0:00:31]} 12. Bb3 {[%emt 0:00:01]} a5 {[%emt 0:00:36]} 13. a4 {[%emt 0:00:08]} Bd7 {[%emt 0:01:19]} 14. Bd2 {[%emt 0:00:13]} Kh8 {[%emt 0:00:48]} 1/2-1/2